fUSD/lending_fUSD_20260427
["ID","MTS","AMOUNT","RATE_DAILY","PERIOD"]
[421242861,1777287082565,-726.02,0.00033972,120]
[421242862,1777287082576,-857.8,0.00033972,120]
[421242863,1777287082586,-500.0,0.00033972,120]
[421242864,1777287082596,-942.29,0.00033972,120]
[421242865,1777287082607,-500.0,0.00033972,120]
[421242866,1777287082617,-500.0,0.00033972,90]
[421242867,1777287082627,-888.77,0.00033972,120]
[421242868,1777287082637,-615.52,0.00033972,120]
[421242869,1777287082647,-500.0,0.00033972,120]
[421242870,1777287082657,-691.21,0.00033972,120]
[421242871,1777287082667,-1549.89,0.00033972,120]
[421242872,1777287082677,-500.0,0.00033972,120]
[421242873,1777287082687,-597.1,0.00033972,120]
[421242874,1777287082697,-500.0,0.00033972,120]
[421242875,1777287082707,-516.45,0.00033972,120]
[421242876,1777287082717,-646.3,0.00033972,120]
[421242877,1777287082727,-996.25,0.00033972,120]
[421242878,1777287082737,-729.86,0.00033972,120]
[421242879,1777287082746,-500.0,0.00033972,120]
[421242880,1777287082756,-500.0,0.00033972,120]
[421242881,1777287082766,-862.2,0.00033972,120]
[421242882,1777287082777,-902.68,0.00033972,120]
[421242883,1777287082787,-500.0,0.00033972,120]
[421242884,1777287082797,-932.95,0.00033972,120]
[421242885,1777287082807,-501.5,0.00033972,120]
[421242886,1777287082816,-932.07,0.00033972,120]
[421242887,1777287082826,-500.0,0.00033972,120]
[421242888,1777287082836,-946.6,0.00033972,120]
[421242889,1777287082846,-638.61,0.00033972,120]
[421242890,1777287082856,-500.0,0.00033972,120]
[421242891,1777287082866,-1014.18,0.00033972,120]
[421242892,1777287082876,-500.0,0.00033972,120]
[421242893,1777287082885,-714.89,0.00033972,120]
[421242894,1777287082895,-1988.17,0.00033972,120]
[421242895,1777287082906,-495.8636141,0.00033972,120]
[421242896,1777287082916,-515.26805189,0.00033972,120]
[421242897,1777287082927,-563.81,0.00033972,120]
[421242898,1777287082938,-500.0,0.00033972,120]
[421242899,1777287082950,-500.0,0.00033972,120]
[421242900,1777287082960,-500.0,0.00033972,7]
[421242901,1777287082970,-500.0,0.00033972,120]
[421242902,1777287082981,-885.91,0.00033972,120]
[421242903,1777287082991,-1640.34,0.00033972,120]
[421242904,1777287083002,-500.0,0.00033972,120]
[421242905,1777287083013,-891.92,0.00033972,120]
[421242906,1777287083023,-669.56,0.00033972,120]
[421242907,1777287083033,-500.0,0.00033972,120]
[421242908,1777287083044,-1390.78,0.00033972,120]
[421242909,1777287083054,-500.0,0.00033972,120]
[421242910,1777287083065,-500.0,0.00033972,120]
[421242911,1777287083164,-500.0,0.00033972,120]
[421242912,1777287083175,-500.0,0.00033972,120]
[421242913,1777287083184,-500.0,0.00033972,60]
[421242914,1777287083194,-668.1,0.00033972,120]
[421242915,1777287083203,-500.0,0.00033972,120]
[421242916,1777287083212,-500.0,0.00033972,120]
[421242917,1777287083222,-500.0,0.00033972,120]
[421242918,1777287083232,-500.0,0.00033972,120]
[421242919,1777287083241,-660.18,0.00033972,120]
[421242920,1777287083250,-691.69,0.00033972,120]
[421242921,1777287083260,-500.0,0.00033972,120]
[421242922,1777287083269,-691.03,0.00033972,120]
[421242923,1777287083279,-500.0,0.00033972,120]
[421242924,1777287083289,-618.59,0.00033972,30]
[421242925,1777287083298,-953.58,0.00033972,120]
[421242926,1777287083307,-922.63,0.00033972,120]
[421242927,1777287083317,-4917.9,0.00033972,120]
[421242928,1777287083326,-525.11,0.00033972,120]
[421242929,1777287083336,-551.36,0.00033972,120]
[421242930,1777287083345,-500.0,0.00033972,14]
[421242931,1777287083355,-500.0,0.00033972,120]
[421242932,1777287083364,-840.29,0.00033972,120]
[421242933,1777287083373,-500.0,0.00033972,120]
[421242934,1777287083383,-739.88,0.00033972,120]
[421242935,1777287083392,-919.84,0.00033972,120]
[421242936,1777287083401,-1800.54,0.00033972,120]
[421242937,1777287083411,-500.0,0.00033972,120]
[421242938,1777287083420,-1344.25,0.00033972,120]
[421242939,1777287083429,-500.0,0.00033972,30]
[421242940,1777287083438,-500.0,0.00033972,120]
[421242941,1777287083447,-500.0,0.00033972,120]
[421242942,1777287083456,-916.78,0.00033972,120]
[421242943,1777287083466,-500.0,0.00033972,60]
[421242944,1777287083476,-1345.97,0.00033972,120]
[421242945,1777287083485,-1078.03,0.00033972,120]
[421242946,1777287083495,-500.0,0.00033972,120]
[421242947,1777287083504,-500.0,0.00033972,14]
[421242948,1777287083514,-947.63,0.00033972,120]
[421242949,1777287083524,-549.91,0.00033972,120]
[421242950,1777287083533,-500.0,0.00033972,120]
[421242951,1777287083542,-500.0,0.00033972,120]
[421242952,1777287083552,-748.29,0.00033972,120]
[421242953,1777287083561,-500.0,0.00033972,120]
[421242954,1777287083570,-1742.02,0.00033972,120]
[421242955,1777287083580,-500.0,0.00033972,120]
[421242956,1777287083589,-500.0,0.00033972,12]
[421242957,1777287083598,-980.13,0.00033972,120]
[421242958,1777287083607,-547.89,0.00033972,120]
[421242959,1777287083616,-500.0,0.00033972,120]
[421242960,1777287083626,-500.0,0.00033972,120]
[421242961,1777287083636,-500.0,0.00033972,120]
[421242962,1777287083645,-808.71,0.00033972,120]
[421242963,1777287083654,-697.0,0.00033972,120]
[421242964,1777287083664,-549.6139999,0.00033972,30]
[421242965,1777287083673,-500.0,0.00033972,120]
[421242966,1777287083682,-500.0,0.00033972,120]
[421242967,1777287083691,-698.74,0.00033972,120]
[421242968,1777287083700,-861.18,0.00033972,120]
[421242969,1777287083710,-500.0,0.00033972,120]
[421242970,1777287083719,-599.72,0.00033972,120]
[421242971,1777287083728,-971.15,0.00033972,120]
[421242972,1777287083737,-1898.91,0.00033972,120]
[421242973,1777287083746,-2008.02,0.00033972,120]
[421242974,1777287083755,-500.0,0.00033972,120]
[421242975,1777287083764,-500.0,0.00033972,120]
[421242976,1777287083773,-625.37250353,0.00033972,120]
[421242977,1777287083782,-546.88,0.00033972,120]
[421242978,1777287083792,-500.0,0.00033972,120]
[421242979,1777287083801,-500.0,0.00033972,120]
[421242980,1777287083811,-216.43985456,0.00033972,120]
[421242981,1777287083821,-933.2,0.00033972,120]
[421242982,1777287083831,-923.43,0.00033972,120]
[421242983,1777287083842,-814.23,0.00033972,7]
[421242984,1777287083852,-500.0,0.00033972,120]
[421242985,1777287083862,-545.89,0.00033972,120]
[421242986,1777287083871,-500.0,0.00033972,120]
[421242987,1777287083881,-500.0,0.00033972,120]
[421242988,1777287083891,-607.22,0.00033972,120]
[421242989,1777287083901,-500.0,0.00033972,120]
[421242990,1777287083910,-1022.01,0.00033972,120]
[421242991,1777287083920,-1403.37,0.00033972,120]
[421242992,1777287083930,-500.0,0.00033972,120]
[421242993,1777287083939,-571.92,0.00033972,120]
[421242994,1777287083948,-996.98,0.00033972,120]
[421242995,1777287083958,-500.0,0.00033972,120]
[421242996,1777287083967,-500.0,0.00033972,120]
[421242997,1777287083977,-500.0,0.00033972,120]
[421242998,1777287083987,-500.0,0.00033972,120]
[421242999,1777287083997,-500.0,0.00033972,120]
[421243000,1777287084007,-500.0,0.00033972,120]
[421243001,1777287084016,-500.0,0.00033972,120]
[421243002,1777287084026,-500.0,0.00033972,120]
[421243003,1777287084036,-2027.39,0.00033972,120]
[421243004,1777287084046,-500.0,0.00033972,120]
[421243005,1777287084055,-500.0,0.00033972,120]
[421243006,1777287084065,-544.78,0.00033972,120]
[421243007,1777287084075,-1173.63,0.00033972,120]
[421243008,1777287084084,-580.92,0.00033972,120]
[421243009,1777287084093,-500.0,0.00033972,120]
[421243010,1777287084103,-500.0,0.00033972,120]
[421243011,1777287084112,-500.0,0.00033972,120]
[421243012,1777287084123,-957.19,0.00033972,120]
[421243013,1777287084132,-500.0,0.00033972,120]
[421243014,1777287084142,-500.0,0.00033972,120]
[421243015,1777287084151,-1129.42,0.00033972,120]
[421243016,1777287084161,-500.0,0.00033972,120]
[421243017,1777287084170,-549.6,0.00033972,120]
[421243018,1777287084179,-500.0,0.00033972,120]
[421243019,1777287084189,-500.0,0.00033972,120]
[421243020,1777287084198,-500.0,0.00033972,120]
[421243021,1777287084207,-500.0,0.00033972,120]
[421243022,1777287084216,-500.0,0.00033972,120]
[421243023,1777287084226,-500.0,0.00033972,120]
[421243024,1777287084236,-957.72,0.00033972,120]
[421243025,1777287084245,-2273.93,0.00033972,120]
[421243026,1777287084254,-500.0,0.00033972,120]
[421243027,1777287084263,-500.0,0.00033972,120]
[421243028,1777287084272,-531.34,0.00033972,120]
[421243029,1777287084283,-500.0,0.00033972,120]
[421243030,1777287084292,-500.0,0.00033972,120]
[421243031,1777287084302,-500.0,0.00033972,120]
[421243032,1777287084311,-500.0,0.00033972,120]
[421243033,1777287084321,-826.33,0.00033972,120]
[421243034,1777287084332,-509.36,0.00033972,120]
[421243035,1777287084341,-500.0,0.00033972,120]
[421243036,1777287084351,-1144.83,0.00033972,120]
[421243037,1777287084360,-870.72,0.00033972,120]
[421243038,1777287084370,-500.0,0.00033972,120]
[421243039,1777287084380,-500.0,0.00033972,120]
[421243040,1777287084389,-500.0,0.00033972,120]
[421243041,1777287084398,-500.0,0.00033972,120]
[421243042,1777287084407,-1987.57,0.00033972,120]
[421243043,1777287084417,-1889.91,0.00033972,120]
[421243044,1777287084426,-997.41,0.00033972,120]
[421243045,1777287084436,-500.0,0.00033972,120]
[421243046,1777287084445,-500.0,0.00033972,16]
[421243047,1777287084454,-645.47,0.00033972,120]
[421243048,1777287084464,-551.39,0.00033972,120]
[421243049,1777287084473,-500.0,0.00033972,120]
[421243050,1777287084483,-500.0,0.00033972,120]
[421243051,1777287084492,-607.71,0.00033972,120]
[421243052,1777287084502,-500.0,0.00033972,120]
[421243053,1777287084511,-500.0,0.00033972,120]
[421243054,1777287084521,-1410.28,0.00033972,120]
[421243055,1777287084530,-329.85068482,0.00033972,120]
[421243056,1777287084540,-373.5450638,0.00033972,120]
[421243057,1777287084549,-1075.28,0.00033972,120]
[421243058,1777287084558,-500.0,0.00033972,120]
[421243059,1777287084568,-512.2,0.00033972,120]
[421243060,1777287084577,-500.0,0.00033972,120]
[421243061,1777287084586,-500.0,0.00033972,120]
[421243062,1777287084596,-571.84,0.00033972,120]
[421243063,1777287084605,-500.0,0.00033972,120]
[421243064,1777287084614,-670.88,0.00033972,120]
[421243065,1777287084624,-927.87,0.00033972,120]
[421243066,1777287084633,-500.0,0.00033972,120]
[421243067,1777287084643,-733.46,0.00033972,120]
[421243068,1777287084652,-500.0,0.00033972,120]
[421243069,1777287084662,-845.56,0.00033972,120]
[421243070,1777287084671,-500.0,0.00033972,120]
[421243071,1777287084680,-500.0,0.00033972,120]
[421243072,1777287084690,-500.0,0.00033972,120]
[421243073,1777287084699,-1708.75,0.00033972,120]
[421243074,1777287084709,-500.0,0.00033972,120]
[421243075,1777287084718,-1389.02,0.00033972,120]
[421243076,1777287084727,-721.4,0.00033972,120]
[421243077,1777287084737,-969.99,0.00033972,120]
[421243078,1777287084746,-500.0,0.00033972,120]
[421243079,1777287084755,-832.2,0.00033972,120]
[421243080,1777287084764,-500.0,0.00033972,120]
[421243081,1777287084774,-1256.96,0.00033972,120]
[421243082,1777287084783,-822.73,0.00033972,120]
[421243083,1777287084793,-287.20877153,0.00033972,120]
[421243084,1777287084802,-1697.87,0.00033972,120]
[421243085,1777287084812,-500.0,0.00033972,120]
[421243086,1777287084821,-725.79,0.00033972,120]
[421243087,1777287084831,-740.81,0.00033972,120]
[421243088,1777287084841,-767.5,0.00033972,120]
[421243089,1777287084851,-704.65,0.00033972,120]
[421243090,1777287084860,-874.64,0.00033972,120]
[421243091,1777287084869,-500.0,0.00033972,120]
[421243092,1777287084879,-500.0,0.00033972,120]
[421243093,1777287084889,-1571.63,0.00033972,120]
[421243094,1777287084899,-539.51,0.00033972,120]
[421243095,1777287084909,-500.0,0.00033972,120]
[421243096,1777287084918,-3139.33,0.00033972,120]
[421243097,1777287084928,-500.0,0.00033972,3]
[421243098,1777287084938,-500.0,0.00033972,120]
[421243099,1777287084948,-631.89,0.00033972,120]
[421243100,1777287084957,-500.0,0.00033972,120]
[421243101,1777287084967,-380.42563367,0.00033972,120]
[421243102,1777287084977,-724.47,0.00033972,120]
[421243103,1777287084986,-830.35,0.00033972,120]
[421243104,1777287084996,-714.42,0.00033972,120]
[421243105,1777287085006,-529.87,0.00033972,120]
[421243106,1777287085015,-535.34162474,0.00033972,120]
[421243107,1777287085025,-890.53,0.00033972,120]
[421243108,1777287085035,-633.28,0.00033972,120]
[421243109,1777287085044,-1042.08,0.00033972,120]
[421243110,1777287085054,-500.0,0.00033972,120]
[421243111,1777287085063,-1031.26,0.00033972,120]
[421243112,1777287085072,-500.0,0.00033972,120]
[421243113,1777287085082,-789.82,0.00033972,120]
[421243114,1777287085092,-500.0,0.00033972,120]
[421243115,1777287085102,-500.0,0.00033972,120]
[421243116,1777287085111,-500.0,0.00033972,120]
[421243117,1777287085121,-500.0,0.00033972,120]
[421243118,1777287085130,-1044.44,0.00033972,7]
[421243119,1777287085140,-500.0,0.00033972,120]
[421243120,1777287085150,-174.92,0.00033972,120]
[421243121,1777287085159,-500.0,0.00033972,120]
[421243122,1777287085169,-500.0,0.00033972,120]
[421243123,1777287085179,-500.0,0.00033972,120]
[421243124,1777287085189,-500.0,0.00033972,120]
[421243125,1777287085198,-2152.64,0.00033972,120]
[421243126,1777287085207,-500.0,0.00033972,120]
[421243127,1777287085217,-500.0,0.00033972,120]
[421243128,1777287085226,-500.0,0.00033972,120]
[421243129,1777287085236,-500.0,0.00033972,120]
[421243130,1777287085245,-951.45,0.00033972,120]
[421243131,1777287085255,-10570.76,0.00033972,120]
[421243132,1777287085264,-500.0,0.00033972,120]
[421243133,1777287085274,-953.25,0.00033972,120]
[421243134,1777287085284,-500.0,0.00033972,120]
[421243135,1777287085293,-683.94,0.00033972,120]
[421243136,1777287085302,-500.0,0.00033972,120]
[421243137,1777287085312,-222.34068584,0.00033972,120]
[421243138,1777287085322,-1457.61,0.00033972,120]
[421243139,1777287085331,-500.0,0.00033972,120]
[421243140,1777287085341,-272.13625661,0.00033972,120]
[421243141,1777287085350,-853.59,0.00033972,120]
[421243142,1777287085359,-500.0,0.00033972,120]
[421243143,1777287085369,-927.26,0.00033972,120]
[421243144,1777287085379,-692.0,0.00033972,120]
[421243145,1777287085388,-500.0,0.00033972,120]
[421243146,1777287085398,-1072.51,0.00033972,120]
[421243147,1777287085408,-2915.57,0.00033972,120]
[421243148,1777287085418,-500.0,0.00033972,120]
[421243149,1777287085427,-731.44,0.00033972,120]
[421243150,1777287085436,-500.0,0.00033972,120]
[421243151,1777287085445,-701.43,0.00033972,120]
[421243152,1777287085455,-500.0,0.00033972,120]
[421243153,1777287085464,-954.88,0.00033972,120]
[421243154,1777287085474,-838.15,0.00033972,120]
[421243155,1777287085484,-1783.16,0.00033972,120]
[421243156,1777287085493,-500.0,0.00033972,120]
[421243157,1777287085503,-500.0,0.00033972,120]
[421243158,1777287085513,-500.0,0.00033972,120]
[421243159,1777287085522,-500.0,0.00033972,120]
[421243160,1777287085531,-4705.11,0.00033972,120]
[421243161,1777287085541,-1730.6,0.00033972,120]
[421243162,1777287085549,-500.0,0.00033972,120]
[421243163,1777287085558,-255.61,0.00033972,120]
[421243164,1777287085567,-1123.77,0.00033972,120]
[421243165,1777287085577,-500.0,0.00033972,120]
[421243166,1777287085586,-500.0,0.00033972,120]
[421243167,1777287085595,-500.0,0.00033972,120]
[421243168,1777287085605,-1408.68,0.00033972,120]
[421243169,1777287085614,-714.81,0.00033972,120]
[421243170,1777287085623,-1779.59,0.00033972,120]
[421243171,1777287085633,-500.0,0.00033972,120]
[421243172,1777287085642,-500.0,0.00033972,120]
[421243173,1777287085650,-667.82,0.00033972,120]
[421243174,1777287085660,-5381.05,0.00033972,120]
[421243175,1777287085669,-922.62,0.00033972,120]
[421243176,1777287085678,-625.44,0.00033972,5]
[421243177,1777287085687,-500.0,0.00033972,120]
[421243178,1777287085697,-1690.78,0.00033972,120]
[421243179,1777287085707,-2035.1,0.00033972,120]
[421243180,1777287085716,-674.61,0.00033972,120]
[421243181,1777287085725,-500.0,0.00033972,120]
[421243182,1777287085735,-500.0,0.00033972,120]
[421243183,1777287085745,-1164.41,0.00033972,120]
[421243184,1777287085754,-1082.08,0.00033972,120]
[421243185,1777287085765,-1043.04,0.00033972,120]
[421243186,1777287085775,-998.96,0.00033972,120]
[421243187,1777287085784,-500.0,0.00033972,120]
[421243188,1777287085793,-784.08,0.00033972,120]
[421243189,1777287085802,-1079.64,0.00033972,120]
[421243190,1777287085811,-1143.94,0.00033972,120]
[421243191,1777287085820,-500.0,0.00033972,120]
[421243192,1777287085830,-1451.57,0.00033972,120]
[421243193,1777287085839,-500.0,0.00033972,120]
[421243194,1777287085849,-500.0,0.00033972,120]
[421243195,1777287085860,-819.21,0.00033972,120]
[421243196,1777287085870,-1138.56,0.00033972,120]
[421243197,1777287085881,-601.09,0.00033972,120]
[421243198,1777287085892,-4201.7,0.00033972,120]
[421243199,1777287085902,-554.84029909,0.00033972,120]
[421243200,1777287085911,-996.55,0.00033972,120]
[421243201,1777287085920,-1047.55,0.00033972,120]
[421243202,1777287085930,-541.91,0.00033972,120]
[421243203,1777287085939,-500.0,0.00033972,120]
[421243204,1777287085948,-500.0,0.00033972,120]
[421243205,1777287085957,-500.0,0.00033972,120]
[421243206,1777287085967,-795.18,0.00033972,120]
[421243207,1777287085976,-1162.36,0.00033972,120]
[421243208,1777287085986,-500.0,0.00033972,120]
[421243209,1777287085995,-500.0,0.00033972,120]
[421243210,1777287086005,-845.1,0.00033972,120]
[421243211,1777287086015,-1487.38,0.00033972,120]
[421243212,1777287086024,-500.0,0.00033972,120]
[421243213,1777287086034,-500.0,0.00033972,120]
[421243214,1777287086043,-500.0,0.00033972,120]
[421243215,1777287086054,-500.0,0.00033972,120]
[421243216,1777287086063,-500.0,0.00033972,120]
[421243217,1777287086073,-898.94,0.00033972,120]
[421243218,1777287086083,-500.0,0.00033972,120]
[421243219,1777287086093,-500.0,0.00033972,120]
[421243220,1777287086103,-500.0,0.00033972,120]
[421243221,1777287086112,-500.0,0.00033972,120]
[421243222,1777287086121,-500.62,0.00033972,120]
[421243223,1777287086131,-2636.09,0.00033972,120]
[421243224,1777287086140,-500.0,0.00033972,120]
[421243225,1777287086150,-1789.45,0.00033972,120]
[421243226,1777287086159,-500.0,0.00033972,120]
[421243227,1777287086168,-1085.3,0.00033972,120]
[421243228,1777287086178,-892.08,0.00033972,120]
[421243229,1777287086188,-500.0,0.00033972,120]
[421243230,1777287086199,-631.37,0.00033972,120]
[421243231,1777287086209,-581.62,0.00033972,120]
[421243232,1777287086218,-808.43,0.00033972,120]
[421243233,1777287086228,-741.62,0.00033972,120]
[421243234,1777287086239,-500.0,0.00033972,120]
[421243235,1777287086248,-500.0,0.00033972,120]
[421243236,1777287086257,-500.0,0.00033972,120]
[421243237,1777287086267,-500.0,0.00033972,120]
[421243238,1777287086278,-762.27,0.00033972,120]
[421243239,1777287086287,-1157.96,0.00033972,120]
[421243240,1777287086296,-633.93,0.00033972,120]
[421243241,1777287086305,-874.69,0.00033972,120]
[421243242,1777287086315,-500.0,0.00033972,120]
[421243243,1777287086324,-900.98,0.00033972,120]
[421243244,1777287086333,-500.0,0.00033972,120]
[421243245,1777287086342,-10204.73,0.00033972,120]
[421243246,1777287086352,-500.0,0.00033972,120]
[421243247,1777287086361,-1526.17,0.00033972,120]
[421243248,1777287086371,-500.0,0.00033972,120]
[421243249,1777287086380,-500.0,0.00033972,120]
[421243250,1777287086389,-891.6,0.00033972,120]
[421243251,1777287086398,-500.0,0.00033972,120]
[421243252,1777287086407,-1367.53,0.00033972,120]
[421243253,1777287086418,-500.0,0.00033972,120]
[421243254,1777287086427,-683.25,0.00033972,120]
[421243255,1777287086436,-737.72,0.00033972,120]
[421243256,1777287086445,-500.0,0.00033972,120]
[421243257,1777287086454,-500.0,0.00033972,120]
[421243258,1777287086464,-10627.51,0.00033972,11]
[421243259,1777287086473,-500.0,0.00033972,120]
[421243260,1777287086482,-1508.4,0.00033972,120]
[421243261,1777287086491,-500.0,0.00033972,120]
[421243262,1777287086501,-944.61,0.00033972,120]
[421243263,1777287086510,-1952.39,0.00033972,120]
[421243264,1777287086520,-992.31,0.00033972,120]
[421243265,1777287086529,-644.32,0.00033972,120]
[421243266,1777287086539,-500.0,0.00033972,120]
[421243267,1777287086549,-324.13,0.00033972,120]
[421243268,1777287086558,-855.86,0.00033972,120]
[421243269,1777287086570,-500.0,0.00033972,120]
[421243270,1777287086580,-938.15,0.00033972,120]
[421243271,1777287086589,-500.0,0.00033972,120]
[421243272,1777287086598,-976.87,0.00033972,120]
[421243273,1777287086607,-500.0,0.00033972,120]
[421243274,1777287086616,-500.0,0.00033972,120]
[421243275,1777287086626,-505.03,0.00033972,120]
[421243276,1777287086636,-324.67503681,0.00033972,120]
[421243277,1777287086645,-889.14,0.00033972,120]
[421243278,1777287086654,-500.0,0.00033972,120]
[421243279,1777287086664,-816.73,0.00033972,120]
[421243280,1777287086673,-624.72,0.00033972,120]
[421243281,1777287086682,-9821.09,0.00033972,14]
[421243282,1777287086691,-523.03,0.00033972,120]
[421243283,1777287086701,-2650.84,0.00033972,2]
[421243284,1777287086710,-500.0,0.00033972,120]
[421243285,1777287086719,-822.98,0.00033972,120]
[421243286,1777287086728,-729.37,0.00033972,120]
[421243287,1777287086737,-1000.0,0.00033972,120]
[421243288,1777287086747,-500.0,0.00033972,120]
[421243289,1777287086755,-1044.79,0.00033972,120]
[421243290,1777287086765,-2033.75,0.00033972,120]
[421243291,1777287086775,-500.0,0.00033972,120]
[421243292,1777287086784,-2315.34,0.00033972,120]
[421243293,1777287086793,-957.71,0.00033972,120]
[421243294,1777287086803,-500.0,0.00033972,120]
[421243295,1777287086813,-651.78,0.00033972,120]
[421243296,1777287086822,-1144.22,0.00033972,120]
[421243297,1777287086831,-872.94,0.00033972,120]
[421243298,1777287086841,-500.0,0.00033972,120]
[421243299,1777287086851,-500.0,0.00033972,120]
[421243300,1777287086861,-155.95967533,0.00033972,120]
[421243301,1777287086871,-387.47956393,0.00033972,120]
[421243302,1777287086881,-905.69,0.00033972,120]
[421243303,1777287086891,-659.77,0.00033972,120]
[421243304,1777287086900,-500.0,0.00033972,120]
[421243305,1777287086911,-572.93,0.00033972,120]
[421243306,1777287086920,-526.89,0.00033972,120]
[421243307,1777287086930,-500.0,0.00033972,30]
[421243308,1777287086940,-2198.73,0.00033972,31]
[421243309,1777287086950,-936.24,0.00033972,120]
[421243310,1777287086959,-7236.62,0.00033972,120]
[421243311,1777287086969,-1500.0,0.00033972,120]
[421243312,1777287086979,-601.2,0.00033972,120]
[421243313,1777287086989,-1282.75,0.00033972,120]
[421243314,1777287086998,-500.0,0.00033972,120]
[421243315,1777287087007,-500.0,0.00033972,120]
[421243316,1777287087017,-500.0,0.00033972,120]
[421243317,1777287087027,-162.27045424,0.00034,7]
[421243318,1777287087037,-160.0,0.00034,120]
[421243319,1777287087048,-160.0,0.00034,120]
[421243320,1777287087058,-160.0,0.00034,10]
[421243321,1777287087069,-1011.34,0.00034,14]
[421243322,1777287087079,-219.48921421,0.00034002,120]
[421243323,1777287087089,-219.48921421,0.00034096,120]
[421243324,1777287087099,-221.0,0.00034178,30]
[421243325,1777287087108,-156.0,0.00034178,30]
[421243326,1777287087118,-313.0,0.00034178,30]
[421243327,1777287087128,-401.0,0.00034178,30]
[421243328,1777287087138,-219.48921421,0.00034191,120]
[421243329,1777287087148,-40919.8,0.00034246,120]
[421243330,1777287087158,-5510.884336,0.00034246,120]
[421243331,1777287087167,-406.931409,0.00034246,120]
[421243332,1777287087177,-325.762595,0.00034246,120]
[421243333,1777287087186,-342.964341,0.00034246,120]
[421243334,1777287087196,-2698.281126,0.00034246,120]
[421243335,1777287087206,-500.0,0.00034246,120]
[421243336,1777287087217,-500.0,0.00034246,30]
[421243337,1777287087355,-500.0,0.00034246,90]
[421243338,1777287087365,-500.0,0.00034246,120]
[421243339,1777287087374,-500.0,0.00034246,120]
[421243340,1777287087384,-500.0,0.00034246,120]
[421243341,1777287087393,-500.0,0.00034246,120]
[421243342,1777287087403,-500.0,0.00034246,120]
[421243343,1777287087413,-528.676455,0.00034246,30]
[421243344,1777287087422,-617.81058387,0.00034246,120]
[421243345,1777287087432,-500.0,0.00034246,120]
[421243346,1777287087441,-500.0,0.00034246,120]
[421243347,1777287087451,-500.0,0.00034246,120]
[421243348,1777287087461,-500.0,0.00034246,120]
[421243349,1777287087470,-500.0,0.00034246,120]
[421243350,1777287087480,-500.0,0.00034246,120]
[421243351,1777287087490,-863.36,0.00034246,120]
[421243352,1777287087499,-500.0,0.00034246,2]
[421243353,1777287087509,-500.0,0.00034246,120]
[421243354,1777287087519,-599.06,0.00034246,120]
[421243355,1777287087528,-640.83,0.00034246,120]
[421243356,1777287087538,-500.0,0.00034246,120]
[421243357,1777287087548,-500.0,0.00034246,120]
[421243358,1777287087557,-500.0,0.00034246,120]
[421243359,1777287087566,-307.35506072,0.00034246,120]
[421243360,1777287087576,-1211.95,0.00034246,120]